fUSD/lending_fUSD_20260413
["ID","MTS","AMOUNT","RATE_DAILY","PERIOD"]
[420404367,1776082233645,-200.0,0.00013836,2]
[420404368,1776082233662,-2337.1,0.0001386,2]
[420404369,1776082233673,-200.61168848,0.0001411,2]
[420404370,1776082233685,-2337.1,0.00014256,2]
[420404371,1776082233700,-2337.1,0.00014652,2]
[420404372,1776082233712,-2337.1,0.00015048,2]
[420404373,1776082233724,-10000.0,0.00015205,2]
[420404374,1776082233736,-160.51745018,0.00015258,2]
[420404375,1776082233749,-1235.46,0.00015269,2]
[420404376,1776082233761,-605.46906791,0.00015798,2]
[420404377,1776082233772,-605.4690679,0.00015799,2]
[420404378,1776082233793,-605.4690679,0.00015799,2]
[420404379,1776082233808,-5000.0,0.000158,2]
[420404380,1776082233819,-500.0,0.00015873,2]
[420404381,1776082233851,-17581.78733685,0.00015899,2]
[420404382,1776082233866,-17581.78733681,0.00015899,2]
[420404383,1776082233891,-17581.78733681,0.00015899,2]
[420404384,1776082233904,-17581.78733681,0.00015899,2]
[420404385,1776082233924,-17581.78733681,0.00015899,2]
[420404386,1776082233963,-17581.78733681,0.000159,2]
[420404387,1776082233981,-17581.78733681,0.000159,2]
[420404388,1776082234006,-17581.78733681,0.000159,2]
[420404389,1776082234019,-17581.78733681,0.000159,2]
[420404390,1776082234053,-5000.0,0.000159,2]
[420404391,1776082234064,-222.02819181,0.000159,2]
[420404392,1776082234079,-17581.78733681,0.000159,2]
[420404393,1776082234090,-178.84273406,0.000159,2]
[420404394,1776082234102,-602.7813344,0.000159,2]
[420404395,1776082234115,-500.0,0.00015973,2]
[420404396,1776082234127,-36066.70053733,0.00015989,2]
[420404397,1776082234137,-186.68,0.00015989,3]
[420404398,1776082234148,-560.06,0.00015989,3]
[420404399,1776082234165,-500.0,0.00015999,2]
[420404400,1776082234176,-507.6328555,0.00015999,2]
[420404401,1776082234187,-500.0,0.00015999,2]
[420404402,1776082234201,-323.96114073,0.00015999,2]
[420404403,1776082234214,-592450.2842092,0.00016,2]
[420404404,1776082234229,-187209.333302,0.00016,2]
[420404405,1776082234243,-204593.37693446,0.00016,2]
[420404406,1776082234259,-299275.27045155,0.00016,2]
[420404407,1776082234273,-1254.41808677,0.00016,2]
[420404408,1776082234293,-508.61,0.00016,2]
[420404414,1776082238426,-1465.35479139,0.00015998,2]
[420404415,1776082238446,-805.85549641,0.00015998,2]
[420404416,1776082238460,-500.0,0.00015998,2]
[420404417,1776082238476,-500.0,0.00015998,2]
[420404418,1776082238488,-1819.27834367,0.00015998,2]
[420404419,1776082238505,-451.93194413,0.00015998,2]
[420404420,1776082238522,-500.0,0.00015998,2]
[420404421,1776082238532,-500.0,0.00015998,2]
[420404422,1776082238554,-2271.2102878,0.00015998,2]
[420404423,1776082238565,-500.0,0.00015998,2]
[420404424,1776082238576,-428.03522177,0.00015998,2]
[420404425,1776082238595,-500.0,0.00015998,2]
[420404426,1776082238606,-2271.2102878,0.00015998,2]
[420404427,1776082238618,-500.0,0.00015998,2]
[420404428,1776082238642,-500.0,0.00015998,2]
[420404429,1776082238654,-500.0,0.00015998,2]
[420404430,1776082238666,-500.0,0.00015998,2]
[420404431,1776082238689,-2271.2102878,0.00015998,2]
[420404432,1776082238705,-500.0,0.00015998,2]
[420404433,1776082238716,-500.0,0.00015998,2]
[420404434,1776082238729,-2271.2102878,0.00015998,2]
[420404435,1776082238744,-500.0,0.00015998,2]
[420404436,1776082238755,-2271.2102878,0.00015998,2]
[420404437,1776082238767,-500.0,0.00015998,2]
[420404438,1776082238784,-500.0,0.00015998,2]
[420404439,1776082238804,-2271.2102878,0.00015998,2]
[420404440,1776082238817,-500.0,0.00015998,2]
[420404441,1776082238827,-2271.2102878,0.00015998,2]
[420404442,1776082238847,-348.32502139,0.00015998,2]
[420404443,1776082238859,-500.0,0.00015998,2]
[420404444,1776082238873,-500.0,0.00015998,2]
[420404445,1776082238898,-2271.2102878,0.00015998,2]
[420404446,1776082238909,-500.0,0.00015998,2]
[420404447,1776082238920,-2271.2102878,0.00015998,2]
[420404448,1776082238938,-2271.2102878,0.00015998,2]
[420404449,1776082238950,-500.0,0.00015998,2]
[420404450,1776082238961,-500.0,0.00015998,2]
[420404452,1776082238979,-2271.2102878,0.00015998,2]
[420404454,1776082238990,-500.0,0.00015998,2]
[420404456,1776082239001,-2271.2102878,0.00015998,2]
[420404458,1776082239013,-500.0,0.00015998,2]
[420404460,1776082239027,-500.0,0.00015998,2]
[420404461,1776082239043,-500.0,0.00015998,2]
[420404462,1776082239056,-500.0,0.00015998,2]
[420404463,1776082239068,-2271.2102878,0.00015998,2]
[420404464,1776082239081,-500.0,0.00015998,2]
[420404465,1776082239094,-2271.2102878,0.00015998,2]
[420404466,1776082239110,-500.0,0.00015998,2]
[420404467,1776082239127,-2271.2102878,0.00015998,2]
[420404468,1776082239138,-2271.2102878,0.00015998,2]
[420404469,1776082239153,-500.0,0.00015998,2]
[420404470,1776082239168,-2271.2102878,0.00015998,2]
[420404471,1776082239188,-500.0,0.00015998,2]
[420404472,1776082239200,-415.96727252,0.00015998,2]
[420404473,1776082239211,-2271.2102878,0.00015998,2]
[420404474,1776082239232,-2271.2102878,0.00015998,2]
[420404475,1776082239243,-2271.2102878,0.00015998,2]
[420404476,1776082239254,-500.0,0.00015998,2]
[420404477,1776082239281,-2271.2102878,0.00015998,2]
[420404478,1776082239295,-2271.2102878,0.00015998,2]
[420404479,1776082239317,-2271.2102878,0.00015998,2]
[420404480,1776082239334,-500.0,0.00015998,2]
[420404481,1776082239347,-2271.2102878,0.00015998,2]
[420404482,1776082239373,-2271.2102878,0.00015998,2]
[420404483,1776082239385,-2271.2102878,0.00015998,2]
[420404484,1776082239420,-500.0,0.00015998,2]
[420404485,1776082239433,-2271.2102878,0.00015998,2]
[420404486,1776082239445,-500.0,0.00015998,2]
[420404487,1776082239457,-2271.2102878,0.00015998,2]
[420404488,1776082239471,-2271.2102878,0.00015998,2]
[420404489,1776082239482,-2271.2102878,0.00015998,2]
[420404490,1776082239493,-2271.2102878,0.00015998,2]
[420404491,1776082239504,-2271.2102878,0.00015998,2]
[420404492,1776082239519,-2271.2102878,0.00015998,2]
[420404493,1776082239530,-2271.2102878,0.00015998,2]
[420404494,1776082239542,-2271.2102878,0.00015998,2]
[420404508,1776082240506,-2271.2102878,0.00015998,2]
[420404512,1776082240572,-2271.2102878,0.00015998,2]
[420404513,1776082240609,-2271.2102878,0.00015998,2]
[420404514,1776082240620,-2271.2102878,0.00015998,2]
[420404515,1776082240629,-2271.2102878,0.00015998,2]
[420404516,1776082240639,-2271.2102878,0.00015998,2]
[420404517,1776082240657,-2271.2102878,0.00015998,2]
[420404518,1776082240675,-128459.48385405,0.00016,2]
[420404519,1776082240987,-57.87515913,0.00016,2]
[420404520,1776082241680,-3268.26365647,0.00016,2]
[420404521,1776082241756,-527.67643239,0.00016,2]
[420404522,1776082241822,-491.42396994,0.00016,2]
[420404537,1776082243493,-621.0,0.00016,2]
[420404540,1776082243566,-5570.72162116,0.00016,2]
[420404541,1776082243581,-10609.6170292,0.00016,2]
[420404553,1776082246258,-251.63236447,0.00015097,2]
[420404554,1776082246275,-2287.24056189,0.00016,2]
[420404555,1776082246429,-31553.63012174,0.00016,2]
[420404571,1776082279960,1000.0,0.0003013,120]
[420404572,1776082319928,500.0,0.0003013,120]
[420404573,1776082333569,1671.75,0.00030082,120]
[420404574,1776082334295,1671.75,0.00030082,120]
[420404575,1776082358990,1000.0,0.0003013,120]
[420404576,1776082378854,210.04528,0.00024882,120]
[420404577,1776082404217,1000.0,0.0003013,120]
[420404578,1776082463217,190.0,0.000301,120]
[420404579,1776082464219,188.0,0.000301,120]
[420404580,1776082464278,188.0,0.000301,120]
[420404581,1776082464336,188.0,0.000301,120]
[420404582,1776082464515,168.0,0.000165,30]
[420404583,1776082464798,157.0,0.000165,30]
[420404584,1776082465098,157.0,0.000165,30]
[420404585,1776082465534,157.0,0.000165,30]
[420404586,1776082465869,157.0,0.000165,30]
[420404587,1776082466068,157.0,0.000165,30]
[420404588,1776082466324,157.0,0.000165,30]
[420404589,1776082466703,157.0,0.000165,30]
[420404590,1776082467760,157.0,0.000165,30]
[420404591,1776082467830,157.0,0.000165,30]
[420404592,1776082467955,157.0,0.000165,30]
[420404593,1776082468238,157.0,0.000165,30]
[420404594,1776082468571,157.0,0.000165,30]
[420404595,1776082468826,157.0,0.000165,30]
[420404596,1776082469135,157.0,0.000165,30]
[420404597,1776082469443,157.0,0.000165,30]
[420404598,1776082470438,163.0,0.000301,120]
[420404599,1776082470779,157.0,0.000301,120]
[420404600,1776082471085,157.0,0.000301,120]
[420404601,1776082471367,157.0,0.000301,120]
[420404602,1776082471732,157.0,0.000301,120]
[420404603,1776082472041,157.0,0.000301,120]
[420404604,1776082472407,157.0,0.000301,120]
[420404605,1776082472671,175.0,0.000165,30]
[420404606,1776082473154,153.0,0.000165,30]
[420404607,1776082473415,153.0,0.000165,30]
[420404608,1776082473897,153.0,0.000165,30]
[420404609,1776082474186,153.0,0.000165,30]
[420404610,1776082474418,153.0,0.000165,30]
[420404611,1776082474853,153.0,0.000165,30]
[420404612,1776082475323,153.0,0.000165,30]
[420404613,1776082475579,153.0,0.000165,30]
[420404614,1776082476067,153.0,0.000165,30]
[420404615,1776082477193,153.0,0.000165,30]
[420404616,1776082477463,153.0,0.000165,30]
[420404617,1776082477695,153.0,0.000165,30]
[420404618,1776082478532,153.0,0.000165,30]
[420404619,1776082478657,153.0,0.000165,30]
[420404620,1776082478922,153.0,0.000165,30]
[420404621,1776082479459,153.0,0.000165,30]
[420404622,1776082479733,153.0,0.000165,30]
[420404623,1776082480011,153.0,0.000165,30]
[420404624,1776082480255,153.0,0.000165,30]
[420404625,1776082480506,153.0,0.000165,30]
[420404626,1776082481064,153.0,0.000165,30]
[420404627,1776082481466,153.0,0.000165,30]
[420404628,1776082481704,153.0,0.000165,30]
[420404629,1776082482027,153.0,0.000165,30]
[420404630,1776082482303,153.0,0.000165,30]
[420404631,1776082582052,250.0,0.00013,2]
[420404632,1776082587691,10000.0,0.0003013,120]
[420404633,1776082607570,10000.0,0.0003013,120]
[420404634,1776082631244,10000.0,0.0003013,120]
[420404635,1776082650451,10000.0,0.0003013,120]
[420404636,1776082667575,10000.0,0.0003013,120]
[420404637,1776082679173,10000.0,0.0003013,120]
[420404638,1776082696047,10000.0,0.0003013,120]
[420404639,1776082709489,251.63236447,0.0001,2]
[420404640,1776082711974,10000.0,0.0003013,120]
[420404641,1776082735773,10000.0,0.0003013,120]
[420404642,1776082756071,10000.0,0.0003013,120]
[420404643,1776082773999,10000.0,0.0003013,120]
[420404644,1776082789759,10000.0,0.0003013,120]
[420404645,1776082803966,594.99189142,0.00030136,120]
[420404646,1776082806463,10000.0,0.0003013,120]
[420404647,1776082821361,10000.0,0.0003013,120]
[420404648,1776082833716,10000.0,0.0003013,120]
[420404649,1776082847174,10000.0,0.0003013,120]
[420404650,1776082862622,10000.0,0.0003013,120]
[420404651,1776082873738,10000.0,0.0003013,120]
[420404652,1776082885307,10000.0,0.0003013,120]
[420404653,1776082893656,10000.0,0.0003013,120]
[420404654,1776082903143,10000.0,0.0003013,120]
[420404655,1776082914160,10000.0,0.0003013,120]
[420404656,1776082929731,10000.0,0.0003013,120]
[420404657,1776082936222,1287.0,0.00030082,120]
[420404658,1776082936820,1287.0,0.00030082,120]
[420404659,1776082943627,10000.0,0.0003013,120]
[420404660,1776082956746,10000.0,0.0003013,120]
[420404661,1776082986500,10000.0,0.0003013,120]
[420404669,1776083335769,23422.83169191,0.0003013,120]
[420404670,1776083358407,-177.45,0.00013074,2]
[420404671,1776083358433,-150.0,0.00013699,2]
[420404672,1776083358469,-250.0,0.00014381,2]
[420404673,1776083358509,-250.0,0.00014381,2]
[420404674,1776083358547,-250.0,0.00014382,2]
[420404675,1776083358588,-177.45,0.00015254,2]
[420404676,1776083358619,-281.27288377,0.00015312,2]
[420404677,1776083358663,-1500.0,0.00015339,2]
[420404678,1776083358714,-171.98,0.00015339,2]
[420404679,1776083358794,-200.0,0.00015412,2]
[420404680,1776083358868,-500.0,0.00015542,2]
[420404681,1776083358914,-1200.0,0.00015569,2]
[420404682,1776083358953,-300.0,0.00015569,2]
[420404683,1776083358991,-150.0,0.0001557,2]
[420404684,1776083359027,-1852.42,0.0001557,2]
[420404685,1776083359060,-696.33,0.0001557,2]
[420404686,1776083359099,-1349.37,0.00015816,2]
[420404687,1776083359138,-299.99,0.0001595,2]
[420404688,1776083359178,-152.61490057,0.0001595,2]
[420404689,1776083359214,-1033.60025032,0.0001595,2]
[420404690,1776083359253,-5849.03781173,0.0001595,2]
[420404691,1776083359284,-500.0,0.00015973,2]
[420404692,1776083359319,-500.0,0.00015973,2]
[420404693,1776083359349,-500.0,0.00015973,2]
[420404694,1776083359374,-373.36,0.00015989,3]
[420404695,1776083359399,-190.37,0.0001599,2]
[420404696,1776083359431,-200.0,0.0001599,2]
[420404697,1776083359459,-151.0,0.0001599,2]
[420404698,1776083359483,-500.0,0.0001599,2]
[420404699,1776083359508,-151.0,0.0001599,2]
[420404700,1776083359536,-500.0,0.0001599,2]
[420404701,1776083359562,-151.0,0.0001599,2]
[420404702,1776083359589,-500.0,0.0001599,2]
[420404703,1776083359617,-151.0,0.0001599,2]
[420404704,1776083359642,-500.0,0.0001599,2]
[420404705,1776083359668,-151.0,0.0001599,2]
[420404706,1776083359695,-500.0,0.0001599,2]
[420404707,1776083359726,-151.0,0.0001599,2]
[420404708,1776083359754,-500.0,0.0001599,2]
[420404709,1776083359787,-151.0,0.0001599,2]
[420404710,1776083359825,-500.0,0.0001599,2]
[420404711,1776083359858,-151.0,0.0001599,2]
[420404712,1776083359899,-500.0,0.0001599,2]
[420404713,1776083359941,-151.0,0.0001599,2]
[420404714,1776083359984,-500.0,0.0001599,2]
[420404715,1776083360031,-151.0,0.0001599,2]
[420404716,1776083360074,-500.0,0.0001599,2]
[420404717,1776083360110,-151.0,0.0001599,2]
[420404718,1776083360140,-774.2301018,0.00015998,2]
[420404719,1776083360163,-2682.30558345,0.00015998,2]
[420404720,1776083360596,-844.22689705,0.00015998,2]
[420404721,1776083360681,-1028.64961428,0.00015998,2]
[420404722,1776083360709,-3182.56317461,0.00015998,2]
[420404723,1776083360735,-936.77878242,0.00015998,2]
[420404724,1776083365327,-694.89121758,0.00015998,2]
[420404725,1776083365377,-3133.401,0.00015998,2]
[420404726,1776083365428,-186.545,0.00015998,2]
[420404727,1776083382006,178.84273406,0.0001595,2]
[420404728,1776083403315,1791.49283078,0.0001595,2]
[420404729,1776083403343,2107.86571036,0.0001595,2]
[420404730,1776083405813,500.0,0.00015973,2]
[420404731,1776083409873,5663.54,0.0001599,2]
[420404732,1776083410104,1728.60428964,0.0001599,2]
[420404733,1776083410150,3934.93571036,0.0001599,2]
[420404744,1776083435717,-172.9660446,0.00015999,2]
[420404745,1776083435730,-500.0,0.00015999,2]
[420404746,1776083435741,-500.0,0.00015999,2]
[420404747,1776083435754,-500.0,0.00015999,2]
[420404748,1776083435765,-500.0,0.00015999,2]
[420404749,1776083435778,-500.0,0.00015999,2]
[420404750,1776083435791,-500.0,0.00015999,2]
[420404751,1776083435808,-500.0,0.00015999,2]
[420404752,1776083435822,-500.0,0.00015999,2]
[420404753,1776083435842,-500.0,0.00015999,2]
[420404754,1776083435855,-500.0,0.00015999,2]
[420404755,1776083435867,-500.0,0.00015999,2]
[420404756,1776083435901,-500.0,0.00015999,2]
[420404757,1776083435920,-501.89579156,0.00015999,2]
[420404758,1776083435940,-500.0,0.00015999,2]
[420404760,1776083435950,-500.0,0.00015999,2]
[420404761,1776083435982,-500.0,0.00015999,2]
[420404763,1776083435994,-500.0,0.00015999,2]
[420404765,1776083436038,-500.0,0.00015999,2]
[420404767,1776083436048,-500.0,0.00015999,2]
[420404769,1776083436079,-500.0,0.00015999,2]
[420404771,1776083436088,-500.0,0.00015999,2]
[420404773,1776083436117,-500.0,0.00015999,2]
[420404775,1776083436127,-500.0,0.00015999,2]
[420404776,1776083436143,-500.0,0.00015999,2]
[420404779,1776083436155,-500.0,0.00015999,2]
[420404781,1776083436164,-1415.63914291,0.00015999,2]
[420404783,1776083436175,-1415.63914291,0.00015999,2]
[420404784,1776083436187,-1415.63914291,0.00015999,2]
[420404786,1776083436198,-1415.63914291,0.00015999,2]
[420404789,1776083436209,-1415.63914291,0.00015999,2]
[420404790,1776083436221,-1415.63914291,0.00015999,2]
[420404793,1776083436233,-1415.63914291,0.00015999,2]
[420404795,1776083436243,-1415.63914291,0.00015999,2]
[420404796,1776083436254,-1415.63914291,0.00015999,2]
[420404798,1776083436265,-1415.63914291,0.00015999,2]
[420404800,1776083436277,-1415.63914291,0.00015999,2]
[420404802,1776083436286,-1415.63914291,0.00015999,2]
[420404804,1776083436296,-1415.63914291,0.00015999,2]
[420404805,1776083436309,-1415.63914291,0.00015999,2]
[420404806,1776083436322,-1415.63914291,0.00015999,2]
[420404807,1776083436332,-1415.63914291,0.00015999,2]
[420404808,1776083436342,-1415.63914291,0.00015999,2]
[420404809,1776083436353,-1415.63914291,0.00015999,2]
[420404810,1776083436367,-1415.63914291,0.00015999,2]
[420404811,1776083436377,-1415.63914291,0.00015999,2]
[420404812,1776083436387,-1415.63914291,0.00015999,2]
[420404813,1776083436402,-1415.63914291,0.00015999,2]
[420404814,1776083436412,-1415.63914291,0.00015999,2]
[420404815,1776083436422,-1415.63914291,0.00015999,2]
[420404816,1776083436442,-1415.63914291,0.00015999,2]
[420404817,1776083436453,-1415.63914291,0.00015999,2]
[420404818,1776083436462,-1415.63914291,0.00015999,2]
[420404819,1776083436485,-1415.63914291,0.00015999,2]
[420404820,1776083436500,-1391.46546572,0.00015999,2]
[420404821,1776083437314,-0.65310044,0.00015999,2]
[420404831,1776083438671,-23.52057675,0.00015999,2]
[420404832,1776083438683,-537.64048905,0.00015999,2]
[420404833,1776083438751,-877.99865386,0.00015999,2]
[420404834,1776083438761,-1415.63914291,0.00015999,2]
[420404835,1776083439054,-1415.63914291,0.00015999,2]
[420404836,1776083439119,-1415.63914291,0.00015999,2]
[420404837,1776083439135,-1415.63914291,0.00015999,2]
[420404838,1776083439169,-1415.63914291,0.00015999,2]
[420404839,1776083439239,-1415.63914291,0.00015999,2]
[420404841,1776083439252,-1415.63914291,0.00015999,2]
[420404843,1776083439278,-1415.63914291,0.00015999,2]
[420404845,1776083439297,-1415.63914291,0.00015999,2]
[420404847,1776083439315,-1415.63914291,0.00015999,2]
[420404849,1776083439329,-1415.63914291,0.00015999,2]
[420404851,1776083439386,-1401.48275148,0.00015999,2]
[420404853,1776083439402,-1401.48275148,0.00015999,2]
[420404855,1776083439426,-1401.48275148,0.00015999,2]
[420404857,1776083439437,-1401.48275148,0.00015999,2]
[420404860,1776083439462,-1401.48275148,0.00015999,2]
[420404861,1776083439472,-1401.48275148,0.00015999,2]
[420404863,1776083439490,-1401.48275148,0.00015999,2]
[420404866,1776083439505,-1401.48275148,0.00015999,2]
[420404868,1776083439515,-1401.48275148,0.00015999,2]
[420404870,1776083439530,-1401.48275148,0.00015999,2]
[420404872,1776083439550,-1401.48275148,0.00015999,2]
[420404874,1776083439561,-1401.48275148,0.00015999,2]
[420404876,1776083439571,-1401.48275148,0.00015999,2]
[420404878,1776083439590,-1401.48275148,0.00015999,2]
[420404880,1776083439600,-1401.48275148,0.00015999,2]
[420404882,1776083439610,-1401.48275148,0.00015999,2]
[420404884,1776083439633,-1401.48275148,0.00015999,2]
[420404886,1776083439642,-1401.48275148,0.00015999,2]
[420404888,1776083439662,-1401.48275148,0.00015999,2]
[420404890,1776083439673,-1401.48275148,0.00015999,2]
[420404891,1776083439685,-1401.48275148,0.00015999,2]
[420404892,1776083439702,-1401.48275148,0.00015999,2]
[420404893,1776083439727,-1401.48275148,0.00015999,2]
[420404894,1776083439737,-1401.48275148,0.00015999,2]
[420404895,1776083439747,-1401.48275148,0.00015999,2]
[420404896,1776083439775,-1401.48275148,0.00015999,2]
[420404897,1776083439788,-1401.48275148,0.00015999,2]
[420404898,1776083439802,-1401.48275148,0.00015999,2]
[420404899,1776083439831,-1401.48275148,0.00015999,2]
[420404900,1776083439844,-1401.48275148,0.00015999,2]
[420404901,1776083439862,-355.34299885,0.00015999,2]
[420404902,1776083439888,-501.45895563,0.00015999,2]
[420404903,1776083439897,-500.0,0.00015999,2]
[420404904,1776083439920,-500.0,0.00015999,2]
[420404905,1776083439953,-500.0,0.00015999,2]
[420404906,1776083439963,-500.0,0.00015999,2]
[420404907,1776083439990,-500.0,0.00015999,2]
[420404908,1776083439999,-430.50117196,0.00015999,2]
[420404909,1776083440014,-500.0,0.00015999,2]
[420404910,1776083440028,-1401.48275148,0.00015999,2]
[420404911,1776083440037,-1401.48275148,0.00015999,2]
[420404912,1776083440056,-1401.48275148,0.00015999,2]
[420404913,1776083440065,-1401.48275148,0.00015999,2]
[420404914,1776083440076,-1401.48275148,0.00015999,2]
[420404915,1776083440090,-1401.48275148,0.00015999,2]
[420404916,1776083440103,-1401.48275148,0.00015999,2]
[420404917,1776083440113,-1401.48275148,0.00015999,2]
[420404918,1776083440125,-1401.48275148,0.00015999,2]
[420404919,1776083440138,-1401.48275148,0.00015999,2]
[420404920,1776083440148,-1401.48275148,0.00015999,2]
[420404921,1776083440163,-1401.48275148,0.00015999,2]
[420404922,1776083440177,-1401.48275148,0.00015999,2]
[420404923,1776083440188,-1401.48275148,0.00015999,2]
[420404924,1776083440201,-1401.48275148,0.00015999,2]
[420404925,1776083440214,-1401.48275148,0.00015999,2]
[420404926,1776083440224,-1401.48275148,0.00015999,2]
[420404927,1776083440238,-1401.48275148,0.00015999,2]
[420404928,1776083440248,-1401.48275148,0.00015999,2]
[420404929,1776083440262,-500.0,0.00015999,2]
[420404930,1776083440278,-500.0,0.00015999,2]
[420404931,1776083440288,-507.31548313,0.00015999,2]
[420404932,1776083440298,-500.0,0.00015999,2]
[420404933,1776083440315,-261.50854257,0.00015999,2]
[420404934,1776083440324,-500.0,0.00015999,2]
[420404935,1776083440334,-500.0,0.00015999,2]
[420404936,1776083440346,-500.0,0.00015999,2]
[420404937,1776083440362,-500.0,0.00015999,2]
[420404938,1776083440372,-500.0,0.00015999,2]
[420404939,1776083440382,-500.0,0.00015999,2]
[420404940,1776083440399,-500.0,0.00015999,2]
[420404941,1776083440409,-500.0,0.00015999,2]
[420404942,1776083440419,-500.0,0.00015999,2]
[420404943,1776083440428,-160.86536188,0.00015999,2]
[420404944,1776083440445,-500.0,0.00015999,2]
[420404945,1776083440457,-500.0,0.00015999,2]
[420404946,1776083440467,-500.0,0.00015999,2]
[420404947,1776083440480,-500.0,0.00015999,2]
[420404948,1776083440495,-500.0,0.00015999,2]
[420404949,1776083440507,-500.0,0.00015999,2]
[420404950,1776083440519,-500.0,0.00015999,2]
[420404951,1776083440534,-500.0,0.00015999,2]
[420404952,1776083440547,-500.0,0.00015999,2]
[420404953,1776083440557,-500.0,0.00015999,2]
[420404954,1776083440571,-1401.48275143,0.00015999,2]
[420404955,1776083440601,-1401.48275143,0.00015999,2]
[420404956,1776083440611,-167.47949812,0.00015999,2]
[420404957,1776083440638,-426.77279851,0.00015999,2]
[420404958,1776083440665,-500.0,0.00015999,2]
[420404959,1776083440678,-366.89566157,0.00015999,2]
[420404961,1776083440689,-183821.3766697,0.00016,2]
[420404962,1776083441647,-463.17396815,0.00015999,2]
[420404978,1776083448069,-1100.51603185,0.00015999,2]
[420404979,1776083448117,-1563.69,0.00015999,2]
[420404980,1776083448130,-1003085.92604101,0.00016,2]
[420404981,1776083448291,-709.11,0.00016,2]
[420404982,1776083448303,-155115.63288707,0.00016,2]
[420404983,1776083460983,300.0,0.00015998,2]
[420404984,1776083477302,4775.0,0.00015973,2]
[420404985,1776083488559,176.559,0.0001568,2]
[420404987,1776083509769,178.84273406,0.000159,2]
[420404988,1776083512493,693.0,0.0003013,120]
[420404989,1776083523846,634.67255558,0.000159,2]
[420404990,1776083523871,1964.89980518,0.000159,2]
[420404991,1776083542310,1773.0,0.00030082,120]
[420404992,1776083542912,1773.0,0.00030082,120]
[420404993,1776083575676,734.132512,0.0002646,120]
[420404994,1776083582083,300.0,0.00015998,2]
[420404995,1776083582131,300.0,0.00015998,2]
[420404996,1776083599430,166.66,0.00015616,2]
[420404997,1776083599725,166.66,0.00015945,2]
[420404998,1776083602265,1873.1336,0.00025872,120]
[420404999,1776083634461,1272.96586221,0.00015899,2]
[420405000,1776083641312,300.0,0.00015998,2]
[420405001,1776083647829,1733.04824052,0.000159,2]
[420405002,1776083648615,1200.0,0.00015998,2]
[420405003,1776083653752,150.0,0.00015919,2]
[420405004,1776083672496,10000.00000001,0.00030137,120]
[420405005,1776083694014,500.544895,0.0002254,120]
[420405006,1776083716285,-1918.97,0.00021353,30]
[420405007,1776083716316,-3837.94,0.00023641,30]
[420405008,1776083716352,-5756.91,0.00025929,30]
[420405009,1776083716383,-7675.88,0.00028217,30]
[420405010,1776083716416,-232.35107729,0.00029178,30]
[420405011,1776083716444,-150.0,0.00029178,30]
[420405012,1776083716478,-307.0,0.00030137,120]
[420405013,1776083716516,-475.0,0.00030137,120]
[420405014,1776083716545,-10022.0,0.00030137,120]
[420405015,1776083716588,-500.0,0.00030137,120]
[420405016,1776083716622,-9594.84,0.00030505,30]
[420405017,1776083716659,-500.0,0.00030822,120]
[420405018,1776083716692,-500.0,0.00031726,120]
[420405019,1776083716730,-500.0,0.00032493,120]
[420405020,1776083716765,-11513.81,0.00032793,30]
[420405021,1776083716801,-1155.0,0.00032902,30]
[420405022,1776083716837,-1335.0,0.00032902,30]
[420405023,1776083716868,-830.0,0.00032908,30]
[420405024,1776083716900,-500.0,0.00033479,120]
[420405025,1776083716933,-1155.0,0.00033902,30]